bitfinex-derivatives/quotes_SOLF0:USTF0_20250207
["timestamp","ask_amount","ask_price","bid_price","bid_amount"]
[1738943168422,40.69419062,198.84,198.73,0.03318403]
[1738943168727,35.66779062,198.8,198.65,193.0]
[1738943168920,35.66779062,198.8,198.77,0.03190691]
[1738943169117,35.66779062,198.84,198.66,1.5462]
[1738943169321,5.0256,198.88,198.78,5.0277]
[1738943169522,3.4892,198.89,198.77,0.03520603]
[1738943169827,3.4892,198.89,198.73,35.66779062]
[1738943170023,3.4892,198.89,198.81,0.03491319]
[1738943170822,5.0256,198.88,198.81,0.03491319]
[1738943171023,3.4892,198.89,198.81,0.03491319]
[1738943173117,5.0265,198.84,198.81,0.03491319]
[1738943173320,3.4892,198.89,198.81,0.03491319]
[1738943173519,1.6306,198.94,198.81,0.03491319]
[1738943173823,104.7433,198.97,198.81,35.70270381]
[1738943174125,3.3931,198.99,198.82,3.4544]
[1738943174324,8.4159,198.99,198.88,5.0253]
[1738943174524,3.3931,198.99,198.87,193.033389]
[1738943174724,3.3931,198.99,198.87,193.0]
[1738943175029,5.0233,198.96,198.87,193.0]
[1738943175225,5.0233,198.96,198.91,0.03195375]
[1738943175427,3.3931,198.99,198.91,0.03195375]
[1738943175626,1.9027,198.99,198.91,0.03195375]
[1738943177127,5.0233,198.97,198.91,0.03195375]
[1738943177329,1.9027,198.99,198.91,0.03195375]
[1738943177726,35.66779062,199.0,198.91,0.03195375]
[1738943178229,5.0227,198.99,198.91,0.03195375]
[1738943178431,35.66779062,199.0,198.91,0.03195375]
[1738943178731,5.0236,198.96,198.91,0.03195375]
[1738943178931,35.66779062,199.0,198.91,0.03195375]
[1738943179124,35.66779062,198.94,198.91,0.03195375]
[1738943179326,35.66779062,198.9,198.82,1.5027]
[1738943179532,35.66779062,198.9,198.77,194.6355]
[1738943179927,5.0258,198.87,198.78,5.0279]
[1738943180433,0.03813194,198.84,198.81,0.03428119]
[1738943181231,0.03813194,198.84,198.81,5.06118119]
[1738943181532,0.03813194,198.84,198.81,0.03428119]
[1738943184227,5.0269,198.82,198.81,0.03428119]
[1738943184827,0.03813194,198.84,198.81,0.03428119]
[1738943186533,0.03813194,198.84,198.83,5.0266]
[1738943186734,0.03813194,198.84,198.81,0.03428119]
[1738943187032,0.03813194,198.84,198.82,5.0268]
[1738943187336,0.03813194,198.84,198.81,0.03428119]
[1738943187528,5.0266,198.83,198.81,0.03428119]
[1738943187730,0.03813194,198.84,198.81,0.03428119]
[1738943187934,35.66779062,198.82,198.71,1.5479]
[1738943189037,35.66779062,198.78,198.65,3.3424]
[1738943189235,35.66779062,198.74,198.65,3.3424]
[1738943189533,35.66779062,198.8,198.65,3.3424]
[1738943189534,35.66779062,198.8,198.7,0.0376179]
[1738943189738,1.8625,198.81,198.7,0.0376179]
[1738943189934,7.889e-05,198.71,198.7,5.0675179]
[1738943190141,99.56,198.9,198.7,228.70540852]
[1738943190339,99.56,198.9,198.76,35.66779062]
[1738943190639,5.0252,198.89,198.77,4.8657]
[1738943191143,35.66779062,198.92,198.77,4.8657]
[1738943191338,0.03730285,198.85,198.81,0.03541639]
[1738943192439,0.03730285,198.85,198.84,5.0264]
[1738943193141,0.03730285,198.85,198.81,0.03541639]
[1738943195037,0.03730285,198.85,198.84,5.0264]
[1738943195241,40.77239062,198.96,198.81,193.03541639]
[1738943195448,3.5436,198.96,198.82,35.66779062]
[1738943195646,1.8968,198.96,198.82,228.66779062]
[1738943195847,35.66779062,199.0,198.82,193.0]
[1738943196048,5.1817,199.04,198.86,35.66779062]
[1738943196348,5.0224,199.0,198.92,5.0243]
[1738943196546,5.1817,199.04,198.93,0.03377001]
[1738943196848,5.0227,198.99,198.93,0.03377001]
[1738943197146,35.66779062,199.01,198.93,0.03377001]
[1738943197647,35.66779062,198.97,198.93,0.03377001]
[1738943197948,5.0236,198.96,198.93,0.03377001]
[1738943198848,40.69089062,198.97,198.93,0.03377001]
[1738943199347,5.0234,198.96,198.93,0.03377001]
[1738943201045,35.66779062,198.97,198.93,0.03377001]
[1738943201249,35.66779062,199.01,198.93,0.03377001]
[1738943201644,40.69009062,199.01,198.93,5.05767001]
[1738943201845,5.1817,199.04,198.93,0.03377001]
[1738943202040,6.9565,199.04,198.97,5.0231]
[1738943202342,1.935,199.04,198.89,35.66779062]
[1738943202548,99.56,199.05,198.99,0.0383223]
[1738943202747,5.0208,199.07,199.0,5.0223]
[1738943202947,5.0208,199.07,199.0,5.05453779]
[1738943203147,3.1873,199.09,199.0,5.05453779]
[1738943203350,5.0203,199.08,199.0,5.05453779]
[1738943203650,3.1873,199.09,199.01,5.0218]
[1738943204148,3.1873,199.09,199.0,0.03223779]
[1738943205448,5.0221,199.02,199.0,0.03223779]
[1738943205650,3.1873,199.09,199.0,0.03223779]
[1738943205853,35.66779062,199.02,198.89,193.0]
[1738943206045,5.0226,198.99,198.91,5.0246]
[1738943206552,5.0223,199.0,198.92,5.0243]
[1738943206957,0.03159233,198.98,198.94,0.03634215]
[1738943208354,5.0233,198.97,198.94,0.03634215]
[1738943209050,0.03159233,198.98,198.94,0.03634215]
[1738943210349,0.03159233,198.98,198.94,193.03634215]
[1738943210554,0.03159233,198.98,198.97,5.0231]
[1738943211756,0.03159233,198.98,198.94,193.03634215]
[1738943212255,3.1873,199.09,198.94,193.03634215]
[1738943212457,3.1873,199.09,198.94,193.0]
[1738943213455,3.1873,199.09,199.0,0.03265381]
[1738943213856,35.66779062,199.06,199.0,0.03265381]
[1738943214754,3.1873,199.09,199.0,0.03265381]
[1738943215455,35.66779062,199.06,199.0,0.03265381]
[1738943215858,5.0215,199.04,199.0,0.03265381]
[1738943216454,35.66779062,199.06,199.0,0.03265381]
[1738943218058,5.0216,199.03,199.0,0.03265381]
[1738943218659,5.0221,199.01,199.0,0.03265381]
[1738943219162,1.7473,199.05,199.0,0.03265381]
[1738943220065,35.66779062,199.1,199.0,0.03265381]
[1738943220262,10.8992655,199.18,199.0,0.03265381]
[1738943220263,35.66779062,199.14,199.0,0.03265381]
[1738943220460,40.68679062,199.14,199.06,5.0208]
[1738943220667,5.019,199.14,199.05,0.03747475]
[1738943220965,5.019,199.14,199.07,5.0205]
[1738943221460,5.0186,199.15,199.06,5.0208]
[1738943221762,1.7473,199.17,199.0,193.0]
[1738943221962,35.66779062,199.14,199.09,0.03569673]
[1738943222157,35.66779062,199.1,199.0,193.0]
[1738943222560,35.66779062,199.06,199.0,193.0]
[1738943222762,35.66779062,199.06,198.93,1.5791]
[1738943222962,1.5592,199.09,198.93,1.5791]
[1738943223464,0.03569673,199.03,198.99,0.03558953]
[1738943223965,5.0219,199.02,198.99,0.03558953]
[1738943224466,35.70348735,199.03,198.99,0.03558953]
[1738943224667,0.03569673,199.03,198.99,0.03558953]
[1738943225556,0.03569673,199.03,199.02,5.0218]
[1738943226157,5.0198,199.11,199.04,5.0212]
[1738943226466,35.66779062,199.11,198.97,193.0]
[1738943226666,1.5025,199.17,198.97,193.0]
[1738943226667,35.66779062,199.07,198.97,193.0]
[1738943226862,5.0215,199.04,198.97,193.0]
[1738943227262,5.0215,199.04,198.99,0.03488269]
[1738943227465,35.66779062,199.11,198.99,0.03488269]
[1738943227661,35.66779062,199.15,198.97,228.66779062]
[1738943227855,35.66779062,199.15,199.03,0.03208136]
[1738943228061,5.0191,199.13,199.06,5.0208]
[1738943228258,35.66779062,199.15,199.07,0.03462183]
[1738943228462,35.66779062,199.11,198.97,193.0]
[1738943228666,35.66779062,199.11,199.09,0.03634144]
[1738943228867,35.66779062,199.11,198.97,193.0]
[1738943229367,35.66779062,199.11,199.02,0.03381387]
[1738943229764,35.66779062,199.07,199.02,0.03381387]
[1738943229963,35.66779062,199.07,198.97,193.0]
[1738943230263,5.0213,199.04,199.03,0.03447212]
[1738943230761,35.66779062,199.07,199.03,0.03447212]
[1738943231060,5.0205,199.08,199.03,0.03447212]
[1738943231265,35.66779062,199.1,199.03,0.03447212]
[1738943231467,5.0213,199.04,199.03,0.03447212]
[1738943231861,1.5067,199.09,199.03,0.03447212]
[1738943232874,5.0213,199.04,199.03,0.03447212]
[1738943233068,1.5067,199.09,199.03,0.03447212]
[1738943233069,1.6078,199.08,199.03,0.03447212]
[1738943233470,5.0213,199.04,199.03,0.03447212]
[1738943234073,1.6078,199.08,199.03,0.03447212]
[1738943234763,21.81221189,199.07,199.03,0.03447212]
[1738943235564,5.0209,199.06,199.03,0.03447212]
[1738943235760,1.8253,199.16,199.03,0.03447212]
[1738943235761,21.81221189,199.11,199.03,0.03447212]
[1738943235961,21.81221189,199.11,198.93,216.39131189]
[1738943236165,5.0207,199.07,199.05,0.03352328]
[1738943236366,21.81221189,199.11,198.93,216.39131189]
[1738943236671,3.1764,199.15,198.93,216.39131189]
[1738943236672,5.0195,199.12,199.02,5.0217]
[1738943236968,24.98861189,199.15,199.0,0.03436467]
[1738943237173,24.98861189,199.15,198.97,214.81221189]
[1738943237475,23.38091189,199.15,199.06,0.03409568]
[1738943237965,5.0193,199.12,199.06,0.03409568]
[1738943238168,23.38091189,199.15,199.06,0.03409568]
[1738943238368,21.81221189,199.11,199.06,0.03409568]
[1738943238667,5.0206,199.07,199.06,0.03409568]
[1738943239170,21.81221189,199.07,198.97,193.0]
[1738943239674,21.81221189,199.11,198.97,193.0]
[1738943240364,0.03409568,199.06,199.02,0.03535077]
[1738943240861,5.0213,199.05,199.02,0.03535077]
[1738943241066,0.03409568,199.06,199.02,0.03535077]
[1738943241463,5.0215,199.04,199.02,0.03535077]
[1738943242064,0.03409568,199.06,198.92,3.4604]
[1738943242065,21.81221189,199.03,198.92,3.4604]
[1738943242264,21.81221189,198.99,198.92,1.6103]
[1738943242872,23.62881189,199.03,198.92,1.6103]
[1738943243073,1.5325,199.05,198.92,1.6103]
[1738943243368,0.03552588,198.99,198.96,0.03168784]
[1738943243567,0.03552588,198.99,198.91,27.66903364]
[1738943243870,21.81221189,198.95,198.84,1.5034]
[1738943244272,5.0254,198.88,198.82,6.91725841]
[1738943244467,21.81221189,198.91,198.82,6.91725841]
[1738943244664,5.0254,198.88,198.82,6.91725841]
[1738943244869,0.03439843,198.88,198.85,0.0379572]
[1738943245474,0.03439843,198.88,198.85,5.0640572]
[1738943245774,0.03439843,198.88,198.85,0.0379572]
[1738943246373,4.68,198.96,198.85,0.0379572]
[1738943246670,35.50544239,199.02,198.85,0.0379572]
[1738943246872,35.50544239,199.02,198.85,193.0]
[1738943247172,35.50544239,199.02,198.93,5.024]
[1738943247574,0.03546311,198.99,198.96,0.03849306]
[1738943248274,35.50544239,199.1,198.96,0.03849306]
[1738943248473,35.50544239,199.1,199.01,5.022]
[1738943248676,35.50544239,199.1,198.96,35.50544239]
[1738943248876,37.09944239,199.14,198.97,1.6353]
[1738943249069,35.50544239,199.14,198.97,194.6353]
[1738943249275,35.50544239,199.14,198.98,1.7626]
[1738943249473,35.50544239,199.14,198.98,194.7626]
[1738943249777,0.03127275,199.07,199.05,5.0211]
[1738943250170,0.03127275,199.07,199.04,0.03404386]
[1738943250380,0.03127275,199.07,199.04,5.05534386]
[1738943250787,35.50544239,199.14,199.04,0.03404386]
[1738943251774,35.50544239,199.18,199.08,5.0202]
[1738943252080,35.50544239,199.18,199.0,35.50544239]
[1738943252284,35.50544239,199.18,199.11,5.0194]
[1738943252581,35.50544239,199.18,199.11,0.03306085]
[1738943256078,35.50544239,199.18,199.11,5.05256085]
[1738943256877,35.50544239,199.18,199.11,0.03306085]
[1738943257082,101.2825,199.21,199.11,0.03306085]
[1738943257083,35.50544239,199.22,199.11,0.03306085]
[1738943257384,5.0163,199.25,199.08,35.50544239]
[1738943257587,40.52124239,199.26,199.18,5.0177]
[1738943257783,35.50544239,199.26,199.09,3.3261]
[1738943257983,35.50544239,199.26,199.19,0.03310506]
[1738943259081,5.016,199.25,199.19,0.03310506]
[1738943259288,35.50544239,199.26,199.19,0.03310506]
[1738943260683,35.50544239,199.22,199.19,0.03310506]
[1738943262683,35.50544239,199.26,199.19,0.03310506]
[1738943262887,35.50544239,199.3,199.19,193.03310506]
[1738943263196,1.7048,199.37,199.2,40.39994239]
[1738943263396,1.5245,199.39,199.23,0.03856055]
[1738943263592,5.012,199.42,199.24,35.50544239]
[1738943263801,4.84,199.45,199.24,35.50544239]
[1738943263992,35.50544239,199.44,199.3,0.03197941]
[1738943264496,35.50544239,199.44,199.35,0.03552673]
[1738943265195,35.50544239,199.36,199.06,289.0]
[1738943265400,35.50544239,199.3,199.11,4.9003]
[1738943265897,5.0159,199.26,199.17,5.0178]
[1738943266298,0.03552674,199.23,199.2,0.03396894]
[1738943266493,5.0151,199.29,199.2,0.03396894]
[1738943266898,0.0341276,199.23,199.2,0.03396894]
[1738943267403,21.76109835,199.34,199.2,0.03396894]
[1738943267598,21.76109835,199.34,199.18,6.91725841]
[1738943268103,5.014,199.33,199.22,5.0166]
[1738943268302,21.76109835,199.34,199.18,6.91725841]
[1738943268496,21.76109835,199.34,199.26,0.03825217]
[1738943268693,35.34840529,199.34,199.26,0.03825217]
[1738943269404,5.0155,199.27,199.26,0.03825217]
[1738943269901,5.0161,199.25,199.18,6.91725841]
[1738943270102,40.36450529,199.25,199.16,5.0181]
[1738943270502,35.34840529,199.25,199.11,4.9003]
[1738943270701,5.0163,199.24,199.11,4.9003]
[1738943271101,0.03258218,199.19,199.17,5.0179]
[1738943271406,35.34840529,199.3,199.16,0.03868102]
[1738943271603,0.03804922,199.2,199.11,197.9003]
[1738943271805,5.0156,199.27,199.21,0.03369996]
[1738943272106,35.34840529,199.3,199.11,197.9003]
[1738943272310,5.0164,199.24,199.22,0.03750943]
[1738943272807,40.36440529,199.25,199.22,0.03750943]
[1738943273203,0.03576339,199.26,199.22,0.03750943]
[1738943273402,0.03576339,199.26,199.25,5.016]
[1738943273602,35.34840529,199.38,199.23,4.9484]
[1738943274101,5.0133,199.36,199.27,5.0154]
[1738943274408,35.34840529,199.34,199.23,4.9484]
[1738943274608,35.34840529,199.4,199.23,4.9484]
[1738943274804,35.34840529,199.4,199.27,0.03764304]
[1738943275005,35.34840529,199.4,199.23,4.9484]
[1738943275299,35.34840529,199.4,199.32,0.0325452]
[1738943276511,5.0126,199.39,199.32,0.0325452]
[1738943277006,35.34840529,199.4,199.32,0.0325452]
[1738943277204,35.34840529,199.34,199.32,0.0325452]
[1738943278102,35.34840529,199.4,199.32,5.0466452]
[1738943278305,35.34840529,199.5,199.32,0.0325452]
[1738943278306,35.34840529,199.44,199.32,0.0325452]
[1738943278505,35.34840529,199.44,199.26,40.00840529]
[1738943278706,35.34840529,199.44,199.36,0.03306564]
[1738943280513,3.2699,199.49,199.36,0.03306564]
[1738943280708,5.0109,199.46,199.39,5.0124]
[1738943280914,5.0109,199.46,199.41,0.03624042]
[1738943281314,35.34840529,199.46,199.41,0.03624042]
[1738943281510,5.0085,199.55,199.41,0.03624042]
[1738943281714,35.34840529,199.51,199.41,0.03624042]
[1738943281914,35.34840529,199.51,199.39,4.8638]
[1738943282216,35.34840529,199.51,199.46,0.03562992]
[1738943283409,35.34840529,199.55,199.46,0.03562992]
[1738943283612,5.0082,199.57,199.39,4.8638]
[1738943283808,35.34840529,199.52,199.49,0.03367553]
[1738943286216,35.34840529,199.52,199.39,4.8638]
[1738943286419,35.34840529,199.46,199.26,228.34840529]
[1738943286613,35.34840529,199.42,199.31,3.39]
[1738943286916,1.7375,199.51,199.31,3.39]
[1738943286917,35.34840529,199.46,199.31,3.39]
[1738943287306,5.0116,199.43,199.31,3.39]
[1738943287514,35.34840529,199.46,199.37,0.03491399]
[1738943287515,0.03692129,199.4,199.37,0.03491399]
[1738943289715,5.01,199.49,199.41,5.0119]
[1738943289916,5.01,199.49,199.38,3.3123]
[1738943290313,1.7375,199.51,199.38,3.3123]
[1738943290508,21.73611465,199.54,199.38,3.3123]
[1738943290716,26.74491465,199.54,199.46,5.0106]
[1738943291019,1.589,199.56,199.4,21.73611465]
[1738943291225,1.589,199.56,199.48,0.03398172]
[1738943291920,21.73611465,199.54,199.48,0.03398172]
[1738943292123,21.73611465,199.5,199.48,0.03398172]
[1738943292313,5.0105,199.48,199.4,5.0122]
[1738943292515,21.73611465,199.5,199.38,3.3123]
[1738943293018,5.0102,199.48,199.38,3.3123]
[1738943293317,21.73611465,199.5,199.38,3.3123]
[1738943293517,0.03398173,199.45,199.41,5.04371598]
[1738943294020,0.03398173,199.45,199.41,0.03191598]
[1738943294316,0.03398173,199.45,199.42,5.0116]
[1738943294521,0.03398173,199.45,199.41,0.03191598]
[1738943294715,0.03398173,199.45,199.42,5.0115]
[1738943295915,0.03398173,199.45,199.41,0.03191598]
[1738943296920,0.03398173,199.45,199.44,5.0112]
[1738943297813,0.03398173,199.45,199.42,5.0115]
[1738943298015,0.03398173,199.45,199.41,0.03191598]
[1738943298720,26.74781465,199.42,199.41,0.03191598]
[1738943299228,21.73611465,199.42,199.36,6.91725841]
[1738943300019,21.73611465,199.42,199.31,3.0385]
[1738943300219,0.03661099,199.41,199.37,0.03593559]
[1738943301022,5.0123,199.4,199.37,0.03593559]
[1738943301522,0.03661099,199.41,199.37,0.03593559]
[1738943303325,5.0126,199.39,199.37,0.03593559]
[1738943304427,5.0135,199.36,199.27,8.63015841]
[1738943304623,21.73611465,199.38,199.27,6.91725841]
[1738943304828,21.73611465,199.34,199.27,6.91725841]
[1738943305224,3.1567,199.37,199.28,5.0151]
[1738943305425,21.73611465,199.4,199.25,55.33806729]
[1738943305426,21.73611465,199.4,199.25,27.66903364]
[1738943305629,0.0338402,199.34,199.31,0.03375071]
[1738943306332,0.0338402,199.34,199.33,5.014]
[1738943307029,0.0338402,199.34,199.32,5.0142]
[1738943307233,0.0338402,199.34,199.31,0.03375071]
[1738943307724,3.17,199.46,199.31,0.03375071]
[1738943307921,3.17,199.46,199.31,3.2624]
[1738943308432,5.0116,199.43,199.37,5.0128]
[1738943308627,3.17,199.46,199.31,3.2624]
[1738943309030,0.03459431,199.4,199.37,0.03783021]
[1738943309327,0.03459431,199.4,199.37,5.05083021]
[1738943309733,0.03459431,199.4,199.37,0.03783021]
[1738943310330,5.0125,199.39,199.37,0.03783021]
[1738943310629,0.03459431,199.4,199.37,0.03783021]
[1738943311224,21.73611465,199.39,199.37,0.03783021]
[1738943311423,21.73611465,199.39,199.3,6.91725841]
[1738943311935,21.73611465,199.35,199.3,6.91725841]
[1738943312432,5.0143,199.32,199.3,6.91725841]
[1738943312632,5.0143,199.32,199.31,0.03570816]
[1738943313033,0.03598231,199.34,199.23,6.91725841]
[1738943313225,21.73611465,199.29,199.23,6.91725841]
[1738943313627,26.75141465,199.29,199.23,6.91725841]
[1738943313828,1.6026,199.31,199.23,6.91725841]
[1738943314234,0.03222469,199.29,199.25,0.03641896]
[1738943315636,0.03222469,199.29,199.28,5.0153]
[1738943316027,0.03222469,199.29,199.25,0.03641896]
[1738943317033,1.5141,199.42,199.26,21.73611465]
[1738943317238,21.73611465,199.47,199.26,21.73611465]
[1738943317438,21.73611465,199.47,199.3,21.73611465]
[1738943317637,5.012,199.42,199.36,5.0132]
[1738943317837,21.73611465,199.47,199.31,1.5511]
[1738943318439,0.03433909,199.41,199.37,0.03421173]
[1738943319239,0.03433909,199.41,199.38,5.0127]
[1738943319941,0.03433909,199.41,199.4,5.0122]
[1738943320736,23.31091465,199.54,199.37,0.03421173]
[1738943320932,23.31091465,199.54,199.38,21.73611465]
[1738943321439,89.63422927,199.53,199.38,21.73611465]
[1738943322145,0.03540505,199.47,199.46,5.0106]
[1738943322444,84.62522927,199.53,199.44,0.0352771]
[1738943322738,0.03743734,199.48,199.47,5.0102]
[1738943323138,26.74481465,199.54,199.38,21.73611465]
[1738943323344,0.03435938,199.49,199.48,5.0102]
[1738943323546,26.74481465,199.54,199.48,5.0102]
[1738943323747,0.03473379,199.5,199.48,5.0102]
[1738943324947,0.03473379,199.5,199.46,0.03285933]
[1738943325454,0.03473379,199.5,199.47,5.0105]
[1738943325643,0.03473379,199.5,199.46,0.03285933]
[1738943325948,0.03473379,199.5,199.47,5.0104]
[1738943326143,0.03473379,199.5,199.46,0.03285933]
[1738943326549,0.03473379,199.5,199.47,5.0103]
[1738943326754,0.03473379,199.5,199.46,0.03285933]
[1738943327151,0.03473379,199.5,199.46,5.04355933]
[1738943327350,0.03473379,199.5,199.46,0.03285933]
[1738943328154,0.03473379,199.5,199.49,5.01]
[1738943328357,21.73611465,199.64,199.46,21.76897398]
[1738943328552,21.73611465,199.64,199.47,3.1686]
[1738943328756,5.0065,199.63,199.57,5.0078]
[1738943329267,26.74231465,199.64,199.47,3.1686]
[1738943329458,21.73611465,199.64,199.47,3.1686]
[1738943329658,0.03263183,199.57,199.54,0.03587234]
[1738943329854,0.03263183,199.57,199.56,5.0082]
[1738943330061,3.2823,199.66,199.54,0.03587234]
[1738943330257,0.03621452,199.58,199.54,0.03587234]
[1738943330555,3.2823,199.66,199.59,5.0072]
[1738943330862,5.351e-05,199.58,199.54,21.73611465]
[1738943331058,5.0047,199.7,199.59,5.0074]
[1738943331260,21.73611465,199.72,199.57,21.73611465]
[1738943331557,26.74051465,199.72,199.64,5.006]
[1738943331959,26.74051465,199.72,199.66,0.03371505]
[1738943332263,21.73611465,199.75,199.66,0.03371505]
[1738943333164,5.0038,199.74,199.66,0.03371505]
[1738943333357,21.73611465,199.72,199.66,0.03371505]
[1738943333761,5.0037,199.74,199.66,0.03371505]
[1738943334160,5.004,199.73,199.66,0.03371505]
[1738943334356,21.73611465,199.75,199.66,0.03371505]
[1738943334963,5.0038,199.74,199.66,0.03371505]
[1738943335359,21.73611465,199.75,199.66,0.03371505]
[1738943335564,21.73611465,199.72,199.66,0.03371505]
[1738943335761,21.73611465,199.69,199.51,1.6033]
[1738943335958,21.73611465,199.65,199.52,3.1204]
[1738943336465,26.74241465,199.65,199.56,5.0084]
[1738943336869,21.73611465,199.65,199.56,5.0084]
[1738943337060,0.03292017,199.62,199.59,0.03597305]
[1738943341765,1.6463,199.76,199.59,0.03597305]
[1738943341766,21.73611465,199.74,199.59,0.03597305]
[1738943342172,5.0038,199.75,199.68,5.0053]
[1738943342571,1.6463,199.76,199.58,21.73611465]
[1738943342769,21.73611465,199.78,199.62,21.73611465]
[1738943342970,21.73611465,199.81,199.7,0.03854144]
[1738943343368,21.73611465,199.81,199.63,3.2238]
[1738943343565,21.73611465,199.81,199.74,0.03767067]
[1738943343873,5.0028,199.78,199.7,5.0048]
[1738943344269,5.0028,199.78,199.76,0.03184142]
[1738943344472,5.0028,199.78,199.7,5.0048]
[1738943344671,5.0028,199.78,199.75,0.03395608]
[1738943345068,5.003,199.77,199.75,0.03395608]
[1738943346079,21.73611465,199.77,199.63,3.2238]
[1738943347272,21.73611465,199.77,199.68,0.03788786]
[1738943347471,0.03673023,199.72,199.68,0.03788786]
[1738943347975,1.65823023,199.72,199.68,0.03788786]
[1738943348172,5.0055,199.69,199.68,0.03788786]
[1738943348571,1.65823023,199.72,199.68,0.03788786]
[1738943348778,5.0055,199.69,199.68,0.03788786]
[1738943348980,3.24523023,199.72,199.57,1.6274]
[1738943349379,3.2085,199.72,199.57,1.6274]
[1738943349778,21.73611465,199.69,199.57,1.6274]
[1738943350182,5.0068,199.64,199.61,0.0370988]
[1738943350382,0.03581146,199.65,199.61,0.0370988]
[1738943350780,5.0071,199.63,199.61,0.0370988]
[1738943351385,5.0077,199.61,199.53,5.0093]
[1738943351584,21.77192611,199.65,199.47,1.6884]
[1738943351784,21.73611465,199.65,199.47,1.6884]
[1738943351985,5.0075,199.62,199.53,5.0094]
[1738943352183,21.73611465,199.65,199.47,1.6884]
[1738943352489,5.007,199.63,199.55,5.0089]
[1738943352685,0.03608958,199.58,199.54,0.03778881]
[1738943353784,0.03608958,199.58,199.57,5.0085]
[1738943353984,0.03608958,199.58,199.54,21.77390346]
[1738943354584,0.03608958,199.58,199.54,0.03778881]
[1738943358291,5.009,199.55,199.54,0.03778881]
[1738943358484,5.009,199.55,199.48,6.91725841]
[1738943358680,1.7139,199.57,199.48,6.91725841]
[1738943359189,1.7139,199.57,199.44,1.5471]
[1738943359391,3.3336,199.57,199.44,6.5587]
[1738943359691,0.03534066,199.52,199.49,0.03723122]
[1738943360386,21.73611465,199.51,199.43,27.66903364]
[1738943360690,0.03534066,199.52,199.43,27.66903364]
[1738943360891,5.04514066,199.52,199.45,5.0115]
[1738943361093,0.03534066,199.52,199.43,27.66903364]
[1738943361691,0.03534066,199.52,199.46,0.03172835]
[1738943362188,0.03534066,199.52,199.47,5.011]
[1738943362691,0.03534066,199.52,199.46,0.03172835]
[1738943362890,21.77145531,199.52,199.46,0.03172835]
[1738943363287,26.78145531,199.52,199.46,0.03172835]
[1738943363682,21.77145531,199.52,199.46,0.03172835]
[1738943364488,5.0108,199.48,199.46,0.03172835]
[1738943364692,21.77145531,199.52,199.46,0.03172835]
[1738943364893,5.0102,199.51,199.46,0.03172835]
[1738943365192,21.77145531,199.52,199.46,0.03172835]
[1738943365797,5.0105,199.49,199.46,0.03172835]
[1738943366095,21.77145531,199.52,199.46,0.03172835]
[1738943366295,5.0108,199.48,199.46,0.03172835]
[1738943366593,21.77145531,199.52,199.46,0.03172835]
[1738943366788,0.03534066,199.52,199.46,0.03172835]
[1738943368297,0.03534066,199.52,199.47,5.0108]
[1738943368496,0.03534066,199.52,199.46,0.03172835]
[1738943368898,0.03534066,199.52,199.47,5.0109]
[1738943369498,0.03534066,199.52,199.49,5.0104]
[1738943369698,0.03534066,199.52,199.46,0.03172835]
[1738943370193,0.03534066,199.52,199.48,5.0106]
[1738943370694,0.03534066,199.52,199.46,0.03172835]
[1738943371899,0.03534066,199.52,199.47,5.011]
[1738943372095,0.03534066,199.52,199.46,0.03172835]
[1738943372496,0.03534066,199.52,199.49,5.0104]
[1738943372798,0.03534066,199.52,199.46,0.03172835]
[1738943373099,0.03534066,199.52,199.51,5.01]
[1738943374395,21.73611465,199.64,199.47,24.80271465]
[1738943374604,3.122,199.65,199.47,24.80271465]
[1738943374804,5.0082,199.59,199.47,3.0666]
[1738943374999,5.0082,199.59,199.53,5.0094]
[1738943375305,21.73611465,199.61,199.53,5.0094]
[1738943375507,21.73611465,199.61,199.47,3.0666]
[1738943375702,0.03264717,199.59,199.55,0.03780187]
[1738943378812,5.04064717,199.59,199.55,0.03780187]
[1738943380309,5.0086,199.57,199.55,0.03780187]
[1738943380613,0.03264717,199.59,199.55,0.03780187]
[1738943381011,5.0085,199.58,199.55,0.03780187]
[1738943381212,0.03264717,199.59,199.55,0.03780187]
[1738943382111,21.73611465,199.57,199.55,0.03780187]
[1738943382311,5.0087,199.56,199.55,0.03780187]
[1738943382709,21.73611465,199.57,199.44,1.6859]
[1738943382905,21.73611465,199.57,199.45,5.0113]
[1738943383108,21.73611465,199.53,199.44,1.6859]
[1738943383910,0.03795656,199.5,199.47,0.03189558]
[1738943384115,21.73611465,199.57,199.44,1.6859]
[1738943384313,0.0383072,199.5,199.47,0.03519996]
[1738943384509,5.0089,199.56,199.49,5.0105]
[1738943384809,0.03224788,199.5,199.44,1.6859]